bitfinex-derivatives/quotes_SOLF0:USTF0_20250709
["timestamp","ask_amount","ask_price","bid_price","bid_amount"]
[1752028098853,9.04680052,151.63,151.6,9.04790052]
[1752028099354,6.5939,151.62,151.6,2.45320052]
[1752028101358,9.04660052,151.63,151.6,9.04770052]
[1752028101559,6.5934,151.63,151.6,9.04770052]
[1752028102060,6.5934,151.63,151.61,2.45320052]
[1752028103058,6.5934,151.63,151.6,9.04770052]
[1752028103860,6.5934,151.63,151.61,9.04740052]
[1752028104455,6.5931,151.64,151.62,6.5938]
[1752028104759,4.4293,151.68,151.62,2.45320052]
[1752028104760,2.45320052,151.66,151.62,2.45320052]
[1752028104955,8.30186274,151.65,151.62,2.45320052]
[1752028105156,2.45320052,151.66,151.62,2.45320052]
[1752028105662,6.5928,151.65,151.62,9.04680052]
[1752028106861,6.5929,151.64,151.62,2.45320052]
[1752028107758,2.45320052,151.63,151.53,2.2422]
[1752028108062,2.45320052,151.61,151.58,2.45320052]
[1752028108465,9.04760052,151.61,151.58,9.04870052]
[1752028109764,6.5944,151.61,151.58,9.04870052]
[1752028110765,6.5944,151.61,151.58,6.5955]
[1752028112065,17.47764908,151.68,151.6,3.82683498]
[1752028112265,8.30478071,151.67,151.6,3.82683498]
[1752028112468,6.5928,151.65,151.61,6.5938]
[1752028112667,8.30478071,151.64,151.61,6.5938]
[1752028112867,6.5928,151.65,151.61,6.5938]
[1752028113067,8.30437846,151.64,151.62,6.5937]
[1752028113268,6.5928,151.65,151.62,6.5937]
[1752028113564,8.30441713,151.64,151.62,6.5937]
[1752028113861,6.5922,151.66,151.63,6.5934]
[1752028114058,8.30400533,151.65,151.63,6.5934]
[1752028114265,8.30400533,151.64,151.63,6.5934]
[1752028114570,6.5922,151.66,151.63,6.5934]
[1752028114769,8.30366659,151.65,151.63,6.5934]
[1752028114969,6.5922,151.66,151.63,6.5934]
[1752028115173,8.30366659,151.65,151.63,6.5934]
[1752028115470,6.5922,151.66,151.63,6.5934]
[1752028119862,6.5922,151.66,151.64,6.5929]
[1752028120067,6.5918,151.67,151.64,6.5929]
[1752028121968,2.1984,151.68,151.65,6.5924]
[1752028122173,3.82683498,151.69,151.62,3.82683498]
[1752028123475,6.5914,151.68,151.62,3.82683498]
[1752028123673,3.82683498,151.69,151.62,3.82683498]
[1752028124167,3.82683498,151.69,151.64,6.5927]
[1752028124372,3.82683498,151.69,151.62,3.82683498]
[1752028125575,3.82683498,151.69,151.62,10.42023498]
[1752028126076,6.5927,151.65,151.62,6.5934]
[1752028126874,6.593,151.64,151.61,6.5941]
[1752028129282,3.82683498,151.67,151.56,2.3056]
[1752028129476,3.82683498,151.67,151.59,3.82683498]
[1752028129873,6.5929,151.65,151.61,6.5939]
[1752028131278,6.593,151.64,151.61,6.5939]
[1752028131478,6.593,151.64,151.62,6.5938]
[1752028135786,6.5927,151.65,151.62,6.5938]
[1752028138887,9.0406665,151.65,151.62,9.0417665]
[1752028140588,6.5927,151.65,151.62,9.0417665]
[1752028141988,6.5927,151.65,151.62,6.5938]
[1752028142188,6.5927,151.65,151.62,9.0417665]
[1752028142489,6.593,151.64,151.62,2.49509314]
[1752028144400,6.593,151.64,151.62,9.08879314]
[1752028147406,9.08352068,151.65,151.62,9.08879314]
[1752028148502,2.4479665,151.64,151.62,0.04712664]
[1752028148706,2.4479665,151.63,151.62,0.04712664]
[1752028149003,10.77086614,151.63,151.56,2.4479665]
[1752028149208,2.2327,151.64,151.61,12.28363405]
[1752028149403,8.24085979,151.63,151.62,17.9328339]
[1752028149700,8.24085979,151.63,151.6,2.4479665]
[1752028150007,10.68882629,151.62,151.61,8.93954634]
[1752028150204,7.39259071,151.62,151.61,17.1801353]
[1752028150404,0.58280579,151.64,151.61,17.1801353]
[1752028150610,0.58280579,151.64,151.6,0.04345712]
[1752028150611,2.4479665,151.62,151.6,0.04345712]
[1752028150807,8.24114004,151.61,151.6,0.04345712]
[1752028151105,8.24114004,151.61,151.6,10.73255965]
[1752028151511,8.24114004,151.61,151.6,17.32725965]
[1752028152309,0.00118924,151.61,151.6,17.32725965]
[1752028152507,0.00118924,151.61,151.6,9.08612362]
[1752028153314,2.4479665,151.63,151.61,6.5942]
[1752028153612,2.4479665,151.63,151.62,8.23920315]
[1752028154101,9.0410665,151.64,151.62,8.23920315]
[1752028154401,9.0410665,151.64,151.61,6.5942]
[1752028154402,9.0410665,151.64,151.63,8.23920315]
[1752028155806,6.5931,151.64,151.63,8.23920315]
[1752028156112,9.0410665,151.64,151.63,8.23920315]
[1752028156408,2.1838,151.67,151.63,8.23920315]
[1752028156409,2.4479665,151.65,151.63,8.23920315]
[1752028156609,2.4479665,151.65,151.64,8.23920315]
[1752028157612,9.0404665,151.65,151.64,8.23920315]
[1752028159011,6.5923,151.66,151.64,8.23920315]
[1752028159212,9.0402665,151.66,151.65,8.23920315]
[1752028159413,2.4479665,151.66,151.65,8.23920315]
[1752028160616,9.0403665,151.66,151.65,8.23920315]
[1752028161517,6.5929,151.64,151.61,9.0419665]
[1752028161810,12.09711002,151.63,151.61,9.0419665]
[1752028162015,12.09711002,151.62,151.61,9.0419665]
[1752028162412,21.36908029,151.65,151.62,6.5937]
[1752028162615,21.36908029,151.65,151.63,7.68550159]
[1752028162812,21.41519818,151.65,151.64,7.68550159]
[1752028163516,9.08678439,151.65,151.64,7.68550159]
[1752028164315,8.23966672,151.65,151.64,7.68550159]
[1752028165115,2.49408439,151.65,151.64,7.68550159]
[1752028165517,14.82249818,151.65,151.64,7.68550159]
[1752028166519,21.41519818,151.65,151.64,7.68550159]
[1752028168020,9.08678439,151.65,151.64,7.68550159]
[1752028168418,2.4479665,151.65,151.64,7.68550159]
[1752028168620,2.4479665,151.65,151.62,6.5938]
[1752028169717,2.4479665,151.65,151.62,6.63708897]
[1752028170521,6.593,151.64,151.61,2.4479665]
[1752028170825,18.49921804,151.62,151.61,2.4479665]
[1752028171022,24.81926366,151.62,151.61,2.4479665]
[1752028171519,18.65252331,151.62,151.61,9.0417665]
[1752028174423,31.01017938,151.62,151.61,9.0417665]
[1752028175727,31.01017938,151.62,151.61,6.5938]
[1752028175928,31.01017938,151.62,151.61,9.0417665]
[1752028176423,31.01017938,151.62,151.61,2.4479665]
[1752028176630,31.01017938,151.62,151.6,2.4479665]
[1752028176830,18.67770169,151.61,151.6,2.4479665]
[1752028177426,18.67770169,151.61,151.6,9.0426665]
[1752028177623,3.9721363,151.61,151.6,9.0426665]
[1752028177826,12.37620119,151.62,151.6,2.44740183]
[1752028178027,12.37620119,151.62,151.61,2.44740183]
[1752028178228,0.0437235,151.62,151.61,2.4474002]
[1752028178529,0.0437235,151.62,151.61,9.0416002]
[1752028180434,12.37620119,151.62,151.61,9.0416002]
[1752028181135,0.0437235,151.62,151.61,9.0416002]
[1752028182433,12.32590556,151.63,151.61,2.4474002]
[1752028182633,12.32590556,151.63,151.62,2.4474002]
[1752028183133,18.49921804,151.66,151.64,6.5927]
[1752028183334,18.49921804,151.66,151.64,2.4474002]
[1752028183828,25.09141804,151.66,151.64,9.0401002]
[1752028184438,6.5922,151.66,151.64,9.0401002]
[1752028186239,6.5922,151.66,151.64,6.5927]
[1752028186433,6.5922,151.66,151.64,9.0401002]
[1752028186634,6.5922,151.66,151.64,2.4474002]
[1752028187539,25.09141804,151.66,151.64,2.4474002]
[1752028189840,18.22512785,151.65,151.64,2.4474002]
[1752028190342,18.22512785,151.65,151.63,9.08826465]
[1752028190542,18.22512785,151.64,151.63,9.08826465]
[1752028191536,783.30552454,151.73,151.63,9.08826465]
[1752028191537,569.42,151.9,151.63,37.83768275]
[1752028191732,2.44593098,151.81,151.76,2.44593098]
[1752028191932,190.42,151.87,151.77,8.94408732]
[1752028192243,9.03213098,151.8,151.78,8.94408732]
[1752028192441,9.03213098,151.8,151.79,8.94408732]
[1752028192835,6.5862,151.8,151.79,8.94408732]
[1752028196245,6.587,151.78,151.75,6.5879]
[1752028196446,6.587,151.78,151.76,8.87576594]
[1752028196641,6.587,151.78,151.77,8.87576594]
[1752028197450,1.14658496,151.88,151.77,8.87576594]
[1752028197650,3.81776032,151.84,151.78,8.87576594]
[1752028197846,3.81776032,151.84,151.79,8.87576594]
[1752028198053,6.5855,151.81,151.8,8.87576594]
[1752028204760,6.588,151.76,151.71,12.25170988]
[1752028205050,6.588,151.76,151.72,3.81776032]
[1752028205256,6.5874,151.77,151.74,6.5885]
[1752028208860,6.5874,151.77,151.74,6.63240153]
[1752028212364,6.5874,151.77,151.74,0.04390153]
[1752028213265,6.5874,151.77,151.74,6.63240153]
[1752028213467,6.587,151.78,151.74,0.04390153]
[1752028213765,6.587,151.78,151.75,6.5882]
[1752028213967,6.587,151.78,151.74,0.04390153]
[1752028214162,6.5874,151.77,151.74,0.04390153]
[1752028214465,6.5874,151.77,151.74,6.63230153]
[1752028214868,6.5874,151.77,151.75,2.44369346]
[1752028215968,6.5877,151.76,151.74,2.48759499]
[1752028216168,2.44369346,151.77,151.74,0.04390153]
[1752028217669,6.5877,151.76,151.74,0.04390153]
[1752028224673,2.44369346,151.77,151.74,0.04390153]
[1752028225275,6.5877,151.76,151.74,0.04390153]
[1752028225474,2.44369346,151.77,151.74,0.04390153]
[1752028226573,6.5877,151.76,151.74,0.04390153]
[1752028227071,4.5386,151.83,151.75,2.44369346]
[1752028227373,4.5386,151.83,151.78,2.44369346]
[1752028227374,2.44369346,151.82,151.78,2.44369346]
[1752028227570,6.5863,151.8,151.78,2.44369346]
[1752028229176,4.5386,151.83,151.79,2.44229757]
[1752028229377,4.5386,151.83,151.8,2.44229757]
[1752028229776,6.5856,151.81,151.8,2.44229757]
[1752028230477,6.5853,151.82,151.8,2.44229757]
[1752028230676,6.5853,151.82,151.8,2.44185089]
[1752028230876,6.5853,151.82,151.79,3.81530164]
[1752028231374,6.5848,151.83,151.79,3.81530164]
[1752028231574,3.81530164,151.92,151.81,3.81530164]
[1752028231880,2.2317,151.91,151.84,3.81530164]
[1752028232378,3.81530164,151.9,151.83,3.81530164]
[1752028232771,3.81530164,151.88,151.81,3.81530164]
[1752028232975,3.81530164,151.86,151.79,3.81530164]
[1752028234980,6.5854,151.82,151.79,3.81530164]
[1752028236483,6.5856,151.81,151.79,3.81530164]
[1752028237278,6.5856,151.81,151.77,22.65401152]
[1752028237776,6.5852,151.82,151.77,22.69913177]
[1752028237974,6.5852,151.82,151.78,6.5867]
[1752028238679,3.81530164,151.87,151.79,3.81530164]
[1752028239476,6.584,151.85,151.81,3.81530164]
[1752028240785,6.5843,151.84,151.81,3.81530164]
[1752028241586,6.5846,151.83,151.81,3.81530164]
[1752028241886,3.81530164,151.87,151.81,3.81530164]
[1752028243480,6.5842,151.85,151.81,3.81530164]
[1752028243676,3.81530164,151.87,151.81,3.81530164]
[1752028244686,6.5843,151.84,151.81,3.81530164]
[1752028244887,6.33228471,151.91,151.81,3.81530164]
[1752028245081,6.33228471,151.91,151.83,3.81530164]
[1752028245387,9.15213055,151.95,151.89,3.81530164]
[1752028245584,3.81530164,151.94,151.87,3.81530164]
[1752028245778,3.81530164,151.92,151.85,2.3071]
[1752028246087,3.81530164,151.92,151.85,10.39890164]
[1752028246789,6.5817,151.9,151.85,10.39890164]
[1752028247486,6.5821,151.89,151.85,10.39890164]
[1752028247687,9.15213055,151.98,151.88,3.81530164]
[1752028247887,3.81530164,151.97,151.9,3.81530164]
[1752028248084,6.5806,151.93,151.9,3.81530164]
[1752028248288,2.1834,151.98,151.9,3.81530164]
[1752028248688,2.1834,151.98,151.92,3.81530164]
[1752028248889,2.3229,151.99,151.92,10.39580164]
[1752028249090,6.5789,151.97,151.92,10.39580164]
[1752028249288,2.1834,152.01,151.94,3.81530164]
[1752028250293,2.1834,152.01,151.94,10.39500164]
[1752028250793,6.5781,151.99,151.96,0.041839]
[1752028251295,6.5776,152.0,151.96,10.43614064]
[1752028251992,6.5776,152.0,151.96,3.85714064]
[1752028252191,3.81530164,152.04,151.96,0.041839]
[1752028252495,3.81530164,152.04,151.96,3.85714064]
[1752028252695,6.5779,151.99,151.96,3.85714064]
[1752028253095,2.3229,152.05,151.97,6.5786]
[1752028253295,6.5772,152.01,151.96,3.85714064]
[1752028253497,3.81530164,152.02,151.95,3.81530164]
[1752028253793,3.81530164,152.02,151.97,0.04297219]
[1752028255398,6.578,151.99,151.97,0.04297219]
[1752028256496,3.81530164,152.02,151.97,0.04297219]
[1752028256497,6.5781,151.98,151.97,0.04297219]
[1752028256898,2.3229,152.05,151.97,3.85827383]
[1752028257199,2.3229,152.05,151.97,0.04297219]
[1752028257398,2.3229,152.05,151.98,3.81530164]
[1752028257598,6.5771,152.01,151.98,3.81530164]
[1752028258789,2.3229,152.05,151.98,3.81530164]
[1752028258988,9.16223066,152.18,152.04,3.81530164]
[1752028259189,3.81530164,152.17,152.1,3.81530164]
[1752028259389,5.98690164,152.17,152.1,3.81530164]
[1752028259600,2.1716,152.17,152.0,23.60530164]
[1752028259900,2.1716,152.17,152.09,3.81530164]
[1752028260098,2.1716,152.17,152.09,10.38840164]
[1752028260299,2.1716,152.17,152.11,3.81530164]
[1752028260492,3.81530164,152.14,152.11,0.04234828]
[1752028260801,3.81530164,152.16,152.11,0.04234828]
[1752028261698,2.1716,152.17,152.11,0.04234828]
[1752028261894,5.98690164,152.17,152.11,0.04234828]
[1752028262299,2.1716,152.17,152.11,0.04234828]
[1752028262499,6.5721,152.12,152.11,0.04234828]
[1752028265402,6.572,152.13,152.11,0.04234828]
[1752028266301,6.572,152.13,152.11,3.85764992]
[1752028267498,2.1716,152.17,152.11,3.85764992]
[1752028267697,0.04951075,152.14,152.11,0.04234828]
[1752028268296,6.5721,152.12,152.11,0.04234828]
[1752028269102,3.81530164,152.12,152.05,3.81530164]
[1752028269308,3.81530164,152.12,152.03,3.81530164]
[1752028269608,6.5742,152.08,152.03,3.81530164]
[1752028269906,3.81530164,152.12,152.05,3.81530164]
[1752028270201,6.5734,152.09,152.05,3.81530164]
[1752028270703,6.5734,152.09,152.05,10.39040164]
[1752028270903,6.5739,152.08,152.05,3.81530164]
[1752028271906,0.04155099,152.1,152.05,3.81530164]
[1752028272509,6.5745,152.07,152.05,3.81530164]
[1752028273208,6.5745,152.07,152.03,6.5756]
[1752028273508,3.81530164,152.16,152.01,62.0]
[1752028273509,3.81530164,152.09,152.01,3.81530164]
[1752028273904,0.04325948,152.07,152.01,3.81530164]
[1752028274209,3.85856112,152.07,152.01,3.81530164]
[1752028275012,0.04325948,152.07,152.03,3.81530164]
[1752028275707,0.04325948,152.07,152.01,3.81530164]
[1752028275910,0.04325948,152.07,152.03,3.81530164]
[1752028276309,0.04325948,152.07,152.03,10.39130164]
[1752028276509,0.04325948,152.07,152.03,3.81530164]
[1752028278114,0.04325948,152.07,152.04,6.5755]
[1752028278417,13.1374,152.2,152.06,3.80117007]
[1752028278602,3.8002474,152.16,152.09,3.8002474]
[1752028279514,6.5722,152.12,152.09,10.3735474]
[1752028279808,6.5722,152.12,152.09,3.8002474]
[1752028280212,3.8002474,152.12,152.05,3.8002474]
[1752028280615,3.8002474,152.13,152.05,3.8002474]
[1752028281108,3.8002474,152.13,152.07,0.04377958]
[1752028281605,6.5733,152.1,152.07,0.04377958]
[1752028282612,6.5734,152.09,152.07,0.04377958]
[1752028283710,6.573,152.1,152.07,0.04377958]
[1752028283911,3.8002474,152.13,152.07,0.04377958]
[1752028284615,3.80198628,152.13,152.07,0.04377958]
[1752028284809,4.5855,152.17,152.07,0.04377958]
[1752028285015,3.80198628,152.16,152.07,3.84576586]
[1752028285312,3.80198628,152.12,152.07,0.04377958]
[1752028285511,6.5738,152.08,152.07,0.04377958]
[1752028295925,11.42755421,152.08,152.07,0.04377958]
[1752028297025,4.85375421,152.08,152.03,3.80302135]
[1752028297224,4.85375421,152.07,152.03,3.80302135]
[1752028297425,11.42855421,152.06,152.03,3.80302135]
[1752028297627,4.85375421,152.05,152.03,3.80302135]
[1752028297827,6.5748,152.06,152.04,8.21531716]
[1752028298024,6.61979958,152.06,152.05,8.21531716]
[1752028298225,0.04499958,152.06,152.05,8.21531716]
[1752028299518,6.5743,152.07,152.05,8.21531716]
[1752028299718,3.80302135,152.11,152.05,8.21531716]
[1752028299928,3.80302135,152.1,152.06,8.21531716]
[1752028300124,6.5742,152.07,152.06,8.21531716]
[1752028300523,3.80302135,152.1,152.06,8.21531716]
[1752028300720,3.80302135,152.1,152.07,8.21531716]
[1752028300925,6.5734,152.09,152.08,8.21531716]
[1752028303020,3.80302135,152.12,152.08,8.21531716]
[1752028303224,3.80302135,152.12,152.09,8.21531716]
[1752028303420,3.80302135,152.12,152.1,8.21531716]
[1752028303626,10.37512135,152.12,152.11,1.716e-05]
[1752028305030,3.80302135,152.12,152.11,1.716e-05]
[1752028305428,3.80302135,152.12,152.1,0.04303665]
[1752028305630,3.80302135,152.12,152.06,6.5744]
[1752028306136,6.5736,152.09,152.06,6.5744]
[1752028306436,3.80302135,152.12,152.05,6.575]
[1752028306930,6.574,152.08,152.05,6.575]
[1752028309039,0.04898696,152.1,152.05,6.575]
[1752028310141,0.04898696,152.1,152.06,6.5747]
[1752028311544,6.5737,152.09,152.06,6.5747]
[1752028311744,3.80282273,152.12,152.06,6.62438493]
[1752028314750,3.80282273,152.12,152.08,6.5738]
[1752028314947,3.80282273,152.14,152.06,3.85250766]
[1752028315144,3.80142428,152.15,152.07,3.80142428]
[1752028316148,3.80142428,152.15,152.09,0.04319857]
[1752028316753,191.04,152.17,152.09,0.04319857]
[1752028316946,6.5728,152.11,152.09,0.04319857]
[1752028317151,3.80142428,152.14,152.1,8.21397692]
[1752028317350,3.80142428,152.14,152.11,8.21397692]
[1752028317649,3.80142428,152.14,152.12,8.21397692]
[1752028317853,10.37262428,152.14,152.13,8.21397692]
[1752028320954,3.80142428,152.14,152.13,8.21397692]
[1752028321452,10.37262428,152.14,152.13,8.21397692]
[1752028321653,10.37262428,152.14,152.13,7.692e-05]
[1752028321855,3.80142428,152.14,152.09,0.04319857]
[1752028322062,3.80142428,152.1,152.09,0.04319857]
[1752028322446,10.37442428,152.1,152.09,0.04319857]
[1752028322852,6.5746,152.07,152.0,1.3126]
[1752028323053,6.5746,152.07,152.02,3.80142428]
[1752028323356,6.5746,152.07,152.03,6.5756]
[1752028323854,3.80142428,152.09,152.03,6.5756]
[1752028324058,0.04505237,152.07,152.04,6.5755]
[1752028324454,0.04505237,152.07,152.0,1.3126]
[1752028324655,0.04505237,152.07,152.03,6.5757]
[1752028325555,6.5747,152.06,152.03,6.5757]
[1752028326555,6.61945237,152.07,152.03,6.5757]
[1752028326960,3.3332078,152.07,152.03,6.62068184]
[1752028327161,3.80142428,152.09,152.03,6.62068184]
[1752028327558,6.5745,152.07,152.03,6.62068184]
[1752028327755,200.74464894,152.17,152.03,6.62068184]
[1752028327962,3.80142428,152.09,152.03,0.04498184]
[1752028328258,3.80142428,152.09,152.0,1.3126]
[1752028328458,6.5753,152.05,152.02,6.5764]
[1752028328657,3.80142428,152.05,152.03,0.04989064]
[1752028328955,1.8338,152.15,152.03,0.04989064]
[1752028329164,3.80142428,152.04,152.03,0.04989064]
[1752028329358,6.577,152.01,151.99,1.2011]
[1752028329661,3.80142428,152.04,152.0,3.63857633]
[1752028329866,5.01146462,152.03,152.01,3.63857633]
[1752028330053,3.80142428,152.04,152.02,3.63857633]
[1752028330361,3.80142428,152.04,152.03,3.63857633]
[1752028331363,10.37692428,152.04,152.03,7.633e-05]
[1752028333463,3.80142428,152.07,152.03,7.633e-05]
[1752028333668,3.80142428,152.07,152.0,0.04223532]
[1752028333862,3.80142428,152.05,151.97,3.80142428]
[1752028334367,3.80142428,152.05,151.98,6.578]
[1752028334561,3.80142428,152.05,151.97,3.80142428]
[1752028335864,3.80142428,152.05,151.99,0.04175762]
[1752028336364,3.80142428,152.05,151.99,3.8431819]
[1752028337658,6.5763,152.03,152.0,6.5772]
[1752028337866,4.50919064,152.12,152.0,6.5772]
[1752028338063,6.5758,152.04,152.0,6.5772]
[1752028338661,6.5758,152.04,152.0,6.61928167]
[1752028341969,6.5761,152.03,152.0,6.61928167]
[1752028342564,6.5764,152.02,152.0,6.61928167]
[1752028342769,3.80142428,152.05,152.0,6.61928167]
[1752028342972,3.80142428,152.05,152.0,6.5772]
[1752028344070,6.5756,152.04,152.01,0.04158971]
[1752028344671,6.5756,152.04,152.01,6.61838971]
[1752028345073,6.576,152.03,152.01,6.61838971]
[1752028346468,6.576,152.03,152.01,0.04158971]
[1752028347971,3.80142428,152.05,152.01,0.04158971]
[1752028348771,6.5764,152.02,152.01,0.04158971]
[1752028355379,13.1452,152.11,152.01,0.04158971]
[1752028355582,3.80142428,152.08,152.01,3.84301399]
[1752028355782,3.80142428,152.08,152.01,3.80142428]
[1752028356082,6.5759,152.04,152.01,10.37802428]
[1752028356577,6.5759,152.04,152.01,10.42413958]
[1752028357086,6.5759,152.04,152.02,6.5763]
[1752028358076,6.576,152.03,152.01,0.0461153]
[1752028358479,3.80142428,152.06,152.01,0.0461153]
[1752028358683,3.80142428,152.04,152.01,0.0461153]
[1752028358886,6.5767,152.02,151.99,6.5775]
[1752028359085,6.5767,152.02,152.01,0.04370728]
[1752028360183,6.5767,152.02,152.01,1.68734878]
[1752028360378,6.5767,152.02,152.01,0.04370728]
[1752028360782,13.1452,152.11,152.01,0.04370728]
[1752028360981,3.80142428,152.08,152.01,3.84513156]
[1752028361279,16.01773183,152.16,152.03,6.5758]
[1752028361280,6.5748,152.06,152.03,6.5758]
[1752028361683,6.5748,152.06,152.03,6.61757813]
[1752028362783,3.80142428,152.09,152.03,6.61757813]
[1752028362784,6.5752,152.05,152.03,0.04177813]
[1752028363686,6.5752,152.05,152.03,6.61777813]
[1752028364286,6.5748,152.06,152.03,6.61777813]
[1752028365483,6.5744,152.07,152.04,6.5754]
[1752028365989,6.5747,152.06,152.04,6.5754]
[1752028366189,6.5747,152.06,152.03,6.61767813]
[1752028366389,6.01430462,152.05,152.03,6.61767813]
[1752028366587,6.5747,152.06,152.03,6.61767813]
[1752028366788,6.01450973,152.05,152.03,6.61767813]
[1752028366989,6.5747,152.06,152.03,6.61767813]
[1752028367284,6.01450974,152.05,152.03,6.61767813]
[1752028367490,6.5747,152.06,152.03,6.61767813]
[1752028370596,6.5752,152.05,152.03,0.04177813]
[1752028377296,6.5752,152.05,152.03,6.61757813]
[1752028383397,0.8107,152.15,152.03,3.84320241]
[1752028383600,3.80142428,152.13,152.07,3.80142428]
[1752028383898,6.5732,152.1,152.07,10.37542428]
[1752028384100,6.5732,152.1,152.08,0.04866355]
[1752028386602,6.5732,152.1,152.09,1.6428221]
[1752028387501,11.864317,152.1,152.08,0.04866355]
[1752028387705,6.5732,152.1,152.08,0.04866355]
[1752028390410,3.80142428,152.15,152.08,3.85008783]
[1752028390610,5.57371405,152.14,152.08,3.85008783]
[1752028390807,6.5723,152.12,152.09,6.5733]
[1752028391008,5.57371405,152.11,152.09,6.5733]
[1752028391206,5.57371405,152.1,152.09,6.5733]
[1752028391409,6.5718,152.13,152.1,6.5728]
[1752028391705,5.57188612,152.12,152.1,6.5728]
[1752028392008,6.5718,152.13,152.1,3.80142428]
[1752028392312,5.57176819,152.12,152.1,3.80142428]
[1752028392512,6.5718,152.13,152.1,3.80142428]
[1752028392706,5.56916347,152.12,152.1,3.80142428]
[1752028392908,6.5718,152.13,152.1,3.80142428]
[1752028393111,5.56916345,152.12,152.1,3.80142428]
[1752028393406,6.5718,152.13,152.1,10.37422428]
[1752028393607,5.60316334,152.12,152.1,10.37422428]
[1752028393811,6.5718,152.13,152.1,10.37422428]
[1752028394005,5.60316334,152.12,152.1,10.37422428]
[1752028394206,6.5718,152.13,152.1,10.37422428]
[1752028394406,3.80142428,152.18,152.1,10.37422428]
[1752028394407,6.5709,152.15,152.12,6.5718]
[1752028395102,6.5713,152.14,152.12,6.61831918]
[1752028395301,3.80142428,152.18,152.12,6.61831918]
[1752028395513,5.31975791,152.17,152.12,0.04651918]
[1752028395707,3.80142428,152.16,152.12,0.04651918]
[1752028396010,3.80142428,152.14,152.07,10.37542428]
[1752028396409,6.5717,152.13,152.12,0.04881726]
[1752028396711,3.80142428,152.14,152.07,10.37542428]
[1752028396910,3.80142428,152.14,152.11,0.04630225]
[1752028398512,6.5721,152.12,152.11,0.04630225]
[1752028399614,3.80142428,152.12,152.05,2.3522]
[1752028400715,3.80142428,152.1,152.05,2.3522]
[1752028401215,0.04837809,152.09,152.05,2.3522]
[1752028401611,6.5745,152.07,152.05,2.3522]
[1752028401912,3.80142428,152.08,152.0,3.80142428]
[1752028402315,6.5759,152.04,152.0,10.37822428]
[1752028402506,0.04422981,152.06,152.0,10.37822428]
[1752028402813,6.5762,152.03,151.99,10.9844]
[1752028403821,3.84565409,152.06,151.99,2.1539]
[1752028403822,3.80142428,152.04,151.99,2.1539]
[1752028404216,3.80142428,152.02,151.96,3.80142428]
[1752028404413,6.578,151.99,151.95,10.38072428]
[1752028404812,6.6219263,151.99,151.95,10.38072428]
[1752028405420,0.0439263,151.99,151.96,6.5789]
[1752028405719,0.0439263,151.99,151.95,3.80142428]
[1752028406217,0.0439263,151.99,151.96,6.5789]
[1752028406610,0.0439263,151.99,151.95,3.80142428]
[1752028407611,0.0439263,151.99,151.97,6.5785]
[1752028409719,0.0439263,151.99,151.95,3.80142428]
[1752028409720,0.0439263,151.99,151.96,6.5789]
[1752028409914,6.6216263,151.99,151.96,6.5789]
[1752028414418,0.0439263,151.99,151.94,192.5939]
[1752028415221,6.6218263,151.99,151.95,6.5792]
[1752028418323,0.0439263,151.99,151.94,8.7336]
[1752028418719,6.579,151.96,151.94,2.1539]
[1752028419526,6.5787,151.97,151.94,2.1539]
[1752028420220,6.5787,151.97,151.94,8.7337]
[1752028420723,3.80142428,151.96,151.87,12.13442561]
[1752028420923,0.0439263,151.99,151.87,12.13442561]
[1752028420924,3.80142428,151.94,151.87,12.13442561]
[1752028421118,3.80142428,151.92,151.86,14.48342561]
[1752028421314,3.80142428,151.92,151.86,2.349]
[1752028421517,3.84961198,151.92,151.86,2.349]
[1752028422222,3.84961198,151.92,151.86,192.829]
[1752028422522,10.43051198,151.92,151.86,192.829]
[1752028422921,3.84961198,151.92,151.86,192.829]
[1752028423116,0.0481877,151.92,151.87,3.80142428]
[1752028426028,0.0481877,151.92,151.91,6.5812]
[1752028428329,0.0481877,151.92,151.9,6.5814]
[1752028428625,0.0481877,151.92,151.89,3.80142428]
[1752028429028,0.0481877,151.92,151.9,6.5816]
[1752028430732,0.0481877,151.92,151.91,6.5812]
[1752028431230,0.0481877,151.92,151.89,6.5817]
[1752028432430,0.0481877,151.92,151.9,6.5814]
[1752028432932,3.80142428,151.98,151.93,6.5801]
[1752028433130,3.80142428,151.99,151.93,6.5801]
[1752028434631,6.5793,151.96,151.94,0.05065644]
[1752028435326,6.5787,151.97,151.94,6.63045644]
[1752028437828,6.5787,151.97,151.94,0.05065644]
[1752028438028,6.5793,151.96,151.94,0.05065644]
[1752028440536,6.5794,151.95,151.94,0.05065644]
[1752028443230,3.80142428,152.0,151.94,3.85208072]
[1752028443436,3.80142428,152.02,151.94,3.85208072]